Cogmind - Beta 11.1 @@@ ROGUE MODE // 2022.08.23 @ 22:58:27 Player: eldritch Result: Self-destructed Performance ------------- Evolutions (3) 1500 Regions Visited (6) 1200 Robots Destroyed (31) 155 Value Destroyed (702) 702 Prototype IDs (28) 560 Alien Tech Used (0) 0 Bonus (350) 350 TOTAL SCORE: 4467 Bonus ------- Follower Combat Kills 50 Aligned with FarCom 300 Cogmind --------- Core Integrity 562/700 Matter 300/300 Energy 310/310 System Corruption 0% Temperature Cool (0) Movement Walking (123) Location -7/Factory Parts ------- > --- POWER (1) -------- Fission Core > --- PROPULSION (3) --- Aluminum Leg Titanium Leg Flexi-carbon Leg > --- UTILITY (5) ------ Medium Storage Unit Visual Processing Unit Experimental Sensor Array Seismic Detector Hardened Light Armor Plating > --- WEAPON (4) ------- Enhanced Autogun Enhanced Autogun Axe > --- INVENTORY (10) --- Potential Leg Potential Leg Coolant Injector Medium Matter Pod (100) Improved Terrain Scanner Decoy Drone Bay (15/16) Enhanced Autogun Enhanced Autogun Mini Grenade Launcher Peak State ------------ > --- POWER ------------ Fission Core > --- PROPULSION ------- Aluminum Leg Titanium Leg Flexi-carbon Leg > --- UTILITY ---------- Medium Storage Unit Visual Processing Unit Experimental Sensor Array Seismic Detector Hardened Light Armor Plating > --- WEAPON ----------- Enhanced Autogun Enhanced Autogun Enhanced Autogun Axe > --- INVENTORY -------- Potential Leg Potential Leg Coolant Injector Medium Matter Pod Improved Terrain Scanner Decoy Drone Bay Enhanced Autogun Enhanced Autogun Mini Grenade Launcher [Rating: 49] Favorites ----------- Power Ion Engine Engine Ion Engine Power Core Light Nuclear Core Propulsion Aluminum Leg Leg Aluminum Leg Utility Medium Storage Unit Device Seismic Detector Storage Medium Storage Unit Processor Visual Processing Unit Protection Hardened Light Armor Plating Weapon Light Cannon Energy Gun EM Pulse Gun Ballistic Gun Enhanced Autogun Ballistic Cannon Light Cannon Launcher Rocket Launcher Impact Weapon Heavy Mace Slashing Weapon Axe Build | -11 -10 -10 -10 -9 -8 -7 ------- Run | Scr Mat Min Exi Min Mat Fac Slots Evolved 6 | . . . . . 4 2 Power . | . . . . . . . Propulsion 1 | . . . . . 1 . Utility 3 | . . . . . 3 . Weapon 2 | . . . . . . 2 Parts Attached 36 | . 7 3 . 2 17 7 Power 4 | . 1 . . . 2 1 Engine 1 | . 1 . . . . . Core 3 | . . . . . 2 1 Reactor . | . . . . . . . Propulsion 6 | . 1 1 . . 3 1 Treads . | . . . . . . . Leg 6 | . 1 1 . . 3 1 Wheel . | . . . . . . . Hover . | . . . . . . . Flight . | . . . . . . . Utility 12 | . 2 1 . . 7 2 Device 8 | . 1 1 . . 4 2 Storage 1 | . 1 . . . . . Processor 1 | . . . . . 1 . Hackware . | . . . . . . . Protection 2 | . . . . . 2 . Artifact . | . . . . . . . Weapon 14 | . 3 1 . 2 5 3 Energy Gun 2 | . 1 . . 1 . . Energy Cannon . | . . . . . . . Ballistic Gun 4 | . . . . . 2 2 Ballistic Cannon 1 | . 1 . . . . . Launcher 4 | . 1 1 . 1 1 . Special Weapon . | . . . . . . . Impact Weapon 2 | . . . . . 2 . Slashing Weapon 1 | . . . . . . 1 Piercing Weapon . | . . . . . . . Special Melee Weapon . | . . . . . . . Unidentified Prototypes 3 | . . . . . 3 . Parts Lost 2 | . . . . . 1 1 Power 1 | . . . . . . 1 Propulsion 1 | . . . . . 1 . Utility . | . . . . . . . Weapon . | . . . . . . . Highest Loss Streak 1 | . . . . . 1 1 To Critical Strikes . | . . . . . . . Average Slot Usage (%) 96 | . 97 99 100 100 88 98 Engine 10 | . 14 14 14 14 5 . Core 1 | . . . . . 3 6 Leg 26 | . 28 27 28 28 21 23 Device 13 | . 11 14 14 14 12 15 Storage 12 | . 14 14 14 14 9 7 Processor 2 | . . . . . 9 7 Protection 2 | . . . . . 8 7 Energy Gun 3 | . 14 . . 4 4 . Ballistic Gun 4 | . 5 . . . 7 22 Ballistic Cannon 8 | . 8 14 14 11 . . Launcher 8 | . . 14 14 11 2 . Impact Weapon 1 | . . . . . 3 4 Naked Turns . | . . . . . . . Heaviest Build 39 | 12 22 23 23 23 34 39 Greatest Support 47 | 20 20 20 20 20 47 47 Greatest Overweight (x) 2 | . 1 2 1 1 1 . Average Overweight (x) . | . . 1 1 1 . . Largest Inventory Capacity 10 | . 10 10 10 10 10 10 Average Capacity 9 | . 9 10 10 10 10 10 Most Carried 10 | . 10 10 10 10 10 10 Average Carried 9 | . 8 9 9 9 8 9 Final Capacity 10 | 8 10 10 10 10 10 10 Final Carried 10 | 6 10 10 10 10 10 10 Class Distribution -------------------- 82% | Mutant 7% | Scavenger-Assassin 5% | Assassin 3% | Scavenger-Mutant Dominant Class ---------------- Mutant | -10/Materials Mutant | -10/Mines Mutant | -10/Exiles Mutant | -9/Mines Mutant | -8/Materials Scavenger-Assassin | -7/Factory Resources | -11 -10 -10 -10 -9 -8 -7 ----------- Run | Scr Mat Min Exi Min Mat Fac Matter Collected 991 | 200 84 141 . 95 48 423 Remotely . | . . . . . . . Salvage Created 968 | . 116 169 . 164 189 330 Parts 48 | . 10 9 . 10 8 11 Haulers Intercepted 1 | . . . . . 1 . Recyclers Shooed 1 | . . . . 1 . . Parts Field Recycled . | . . . . . . . Retrieved Matter . | . . . . . . . Parts Self-Destructed . | . . . . . . . Prevented . | . . . . . . . Kills | -11 -10 -10 -10 -9 -8 -7 ------- Run | Scr Mat Min Exi Min Mat Fac Combat Hostiles Destroyed 23 | . 5 5 . 7 2 4 Melee 2 | . . . . . 2 . Guns 8 | . 3 . . 1 . 4 Cannons 3 | . 2 1 . . . . AOE 10 | . . 4 . 6 . . Classes Destroyed 9 | . 3 3 . . 2 1 Worker 4 | . . 1 . 1 . 2 Hauler 1 | . . . . . 1 . Recycler 4 | . . 2 . . 1 1 Watcher 1 | . 1 . . . . . Swarmer 9 | . 3 3 . 3 . . Grunt 10 | . 2 . . 4 1 3 Duelist 1 | . . . . . . 1 Sentry 1 | . . . . . 1 . Assembled 2 | . . 2 . . . . Best Kill Streak 6 | . 4 4 . 3 3 6 Combat Bots Only 4 | . 3 3 . 3 1 4 Max Kills in Single Turn 3 | . 1 3 . 3 1 2 Gunslinging 1 | . . . . . . 1 Exploded 3 | . . 3 . 3 . . Melee 1 | . . . . . 1 . Uniques/NPCs Destroyed . | . . . . . . . Combat | -11 -10 -10 -10 -9 -8 -7 -------- Run | Scr Mat Min Exi Min Mat Fac Damage Taken 1451 | . 214 164 . 106 128 839 Core 197 | . 26 33 . . . 138 Absorbed by Shields . | . . . . . . . Core Remaining (%) 92 | 100 . . . 76 100 . Volleys Fired 59 | . 15 13 . 10 9 12 Largest 3 | . 2 2 . 2 2 3 Hottest 85 | . 85 68 . 75 60 75 Shots Fired 111 | . 30 17 . 15 13 36 Gun 78 | . 27 . . 5 10 36 Cannon 19 | . 3 12 . 4 . . Launcher 14 | . . 5 . 6 3 . Special . | . . . . . . . Kinetic 73 | . 15 12 . 4 6 36 Thermal 15 | . 15 . . . . . Explosive 14 | . . 5 . 6 3 . Electromagnetic 9 | . . . . 5 4 . Robot Hit Streak 9 | . 9 7 . 6 3 6 Robot Miss Streak 5 | . 2 3 . 4 5 2 Penetration Max . | . . . . . . . Secondary Targets 3 | . . . . . . 3 Max Gunslinging Chain 2 | . . . . . . 2 Shots Hit Robots 82 | . 20 9 . 9 12 32 Core Hits 50 | . 10 10 . 13 5 12 Critical Kills 2 | . . . . . 2 . Critical Parts Destroyed 1 | . . . . . 1 . Critical Strikes 9 | . 3 2 . 1 3 . Burn 2 | . 2 . . . . . Blast 4 | . 1 2 . 1 . . Smash 3 | . . . . . 3 . Melee Attacks 26 | . . . . . 18 8 Impact 18 | . . . . . 18 . Slashing 8 | . . . . . . 8 Piercing . | . . . . . . . Sneak Attacks 2 | . . . . . 1 1 Combat Hostiles . | . . . . . . . Follow-up Attacks . | . . . . . . . Damage Inflicted 2220 | . 253 411 . 511 401 644 Guns 833 | . 200 . . 69 69 495 Cannons 240 | . 53 133 . 54 . . Explosions 663 | . . 278 . 385 . . Melee 481 | . . . . . 332 149 Ramming 3 | . . . . 3 . . Kinetic 820 | . 113 133 . 54 25 495 Thermal 171 | . 140 . . 31 . . Explosive 632 | . . 278 . 354 . . Electromagnetic 113 | . . . . 69 44 . Impact 332 | . . . . . 332 . Slashing 149 | . . . . . . 149 Piercing . | . . . . . . . Highest Corruption . | . . . . . . . Average Corruption . | . . . . . . . Corruption Purged . | . . . . . . . Corruption Blocked . | . . . . . . . Overload Shots . | . . . . . . . Overflow Damage 91 | . . 6 . . 51 34 Projectiles . | . . . . . . . Explosions 6 | . . 6 . . . . Melee 85 | . . . . . 51 34 Knockbacks . | . . . . . . . Impact . | . . . . . . . Kinetic . | . . . . . . . Secondary . | . . . . . . . Self-Inflicted Damage 7 | . . . . 7 . . Shots 1 | . . . . 1 . . Rammed . | . . . . . . . Targets Rammed 1 | . . . . 1 . . Kicked 1 | . . . . 1 . . Crushed . | . . . . . . . Highest Temperature 337 | . 20 12 . 96 18 337 Average Temperature 70 | . 7 6 . 41 9 160 Received Heat Transfer 390 | . 39 . . 63 45 243 Siege Activations . | . . . . . . . Robots Corrupted . | . . . . . . . Combat Hostiles . | . . . . . . . Parts Fried . | . . . . . . . Impact Corruptions 2 | . . . . . 2 . Robots Melted . | . . . . . . . Combat Hostiles . | . . . . . . . Parts Melted 2 | . 2 . . . . . Heat Transferred 605 | . 555 . . 50 . . Parts Sabotaged . | . . . . . . . Parts Stolen . | . . . . . . . Parts Stripped . | . . . . . . . Power Chain Reactions . | . . . . . . . Missiles Intercepted . | . . . . . . . Alert | -11 -10 -10 -10 -9 -8 -7 ------- Run | Scr Mat Min Exi Min Mat Fac Peak Influence 351 | . 162 154 . 351 172 113 Initial 136 | . . . . . 136 . Average 80 | . 78 62 . 71 119 49 Maximum Alert Level 1 | . . . . 1 . . Low Security (%) 97 | . 100 100 . 88 100 100 Level 1 2 | . . . . 11 . . Level 2 . | . . . . . . . Level 3 . | . . . . . . . Level 4 . | . . . . . . . Level 5 . | . . . . . . . High Security . | . . . . . . . Max Security . | . . . . . . . Squads Dispatched 2 | . . . . . 2 . Investigation . | . . . . . . . Extermination . | . . . . . . . Reinforcement 2 | . . . . . 2 . Assault . | . . . . . . . Garrison . | . . . . . . . Intercept . | . . . . . . . Searches Triggered . | . . . . . . . Construction Impeded . | . . . . . . . Haulers Reinforced . | . . . . . . . Active Scanning Responses . | . . . . . . . Cargo Convoy Interrupts . | . . . . . . . Stealth | -11 -10 -10 -10 -9 -8 -7 --------- Run | Scr Mat Min Exi Min Mat Fac Distress Signals 6 | . 1 . . . 5 . Communications Jammed . | . . . . . . . Distress Signals . | . . . . . . . Times Spotted 40 | . 10 7 . 7 8 8 Peak Tracking Total 7 | . 5 7 . 3 4 4 Tactical Retreats 4 | . . 1 . . 3 . Traps | -11 -10 -10 -10 -9 -8 -7 ------- Run | Scr Mat Min Exi Min Mat Fac Traps Triggered 2 | . 1 . . . . 1 Indirectly . | . . . . . . . Trap Hack Attempts . | . . . . . . . Triggered . | . . . . . . . Disarmed . | . . . . . . . Reprogrammed . | . . . . . . . Reused . | . . . . . . . Traps Extracted . | . . . . . . . Installed . | . . . . . . . Triggered 1 | . . . . 1 . . Machines | -11 -10 -10 -10 -9 -8 -7 ---------- Run | Scr Mat Min Exi Min Mat Fac Machines Disabled 4 | . . . . 3 1 . Max in Single Turn 2 | . . . . 2 1 . Machines Sabotaged . | . . . . . . . Garrisons Compromised . | . . . . . . . Overloaded Fab Kills . | . . . . . . . Hacking | -11 -10 -10 -10 -9 -8 -7 --------- Run | Scr Mat Min Exi Min Mat Fac Machines Accessed 9 | . 4 1 1 . 3 . Terminals 5 | . 4 . . . 1 . Fabricators . | . . . . . . . Repair Stations . | . . . . . . . Recycling Units . | . . . . . . . Scanalyzers 2 | . . . . . 2 . Garrison Access . | . . . . . . . Total Hacks 27 | . 12 1 1 . 13 . Successful 19 | . 7 1 1 . 10 . Failed 8 | . 5 . . . 3 . Catastrophic 1 | . . . . . 1 . Database Lockouts . | . . . . . . . Manual 15 | . 10 . 1 . 4 . Terminals 16 | . 12 . . . 4 . Fabricators . | . . . . . . . Repair Stations . | . . . . . . . Recycling Units . | . . . . . . . Scanalyzers 9 | . . . . . 9 . Garrison Access . | . . . . . . . Terminal Hacks 8 | . 5 1 1 . 1 . Robot Analysis 2 | . 2 . . . . . Prototype ID Bank 1 | . 1 . . . . . Open Door 1 | . . 1 . . . . Branch Access Points 1 | . 1 . . . . . Terminal Index 2 | . 1 . . . 1 . EX-Prototype ID Bank 1 | . . . 1 . . . Fabricator Hacks . | . . . . . . . Repair Station Hacks . | . . . . . . . Recycling Unit Hacks . | . . . . . . . Scanalyzer 8 | . . . . . 8 . Insert Component 3 | . . . . . 3 . Analyze 5 | . . . . . 5 . Garrison Access Hacks . | . . . . . . . Unauthorized Hacks 3 | . 2 . . . 1 . Terminals 3 | . 2 . . . 1 . Botnet 3 | . 2 . . . 1 . Fabricators . | . . . . . . . Repair Stations . | . . . . . . . Recycling Units . | . . . . . . . Scanalyzers . | . . . . . . . Garrison Access . | . . . . . . . Data Cores Recovered . | . . . . . . . Used . | . . . . . . . Hacking Detections 5 | . 3 . . . 2 . Full Trace Events . | . . . . . . . Feedback Events . | . . . . . . . Feedback Blocked . | . . . . . . . Robot Schematics Acquired . | . . . . . . . Robots Built . | . . . . . . . Authchips . | . . . . . . . Time . | . . . . . . . Total Robot Build Rating . | . . . . . . . Part Schematics Acquired 3 | . . . . . 3 . Parts Built . | . . . . . . . Authchips . | . . . . . . . Time . | . . . . . . . Total Part Build Rating . | . . . . . . . Parts Repaired . | . . . . . . . Time . | . . . . . . . Parts Recycled . | . . . . . . . Recycled Matter . | . . . . . . . Retrieved Matter . | . . . . . . . Retrieved Components . | . . . . . . . Parts Scanalyzed 3 | . . . . . 3 . Part Schematics Acquired 3 | . . . . . 3 . Parts Damaged . | . . . . . . . Bothacking | -11 -10 -10 -10 -9 -8 -7 ------------ Run | Scr Mat Min Exi Min Mat Fac Used RIF Installer . | . . . . . . . Robots Hacked . | . . . . . . . Non-combat . | . . . . . . . Combat . | . . . . . . . Robot Hacks Applied . | . . . . . . . Relay Couplers Released . | . . . . . . . Fabnet Peak Effective % . | . . . . . . . Robots Rewired . | . . . . . . . Allies Hacked . | . . . . . . . Hacks Repelled . | . . . . . . . Allies | -11 -10 -10 -10 -9 -8 -7 -------- Run | Scr Mat Min Exi Min Mat Fac Total Allies 5 | . . 5 . . . . Largest Group 5 | . . 5 5 3 . . Highest-Rated Group 75 | . . 75 75 40 . . Highest-Rated Ally 31 | . . 31 31 16 . . Total Orders 1 | . . . . . 1 . EXPLORE 1 | . . . . . 1 . Ally Attacks 35 | . . 6 . 29 . . Total Damage 319 | . . 61 . 258 . . Kills 3 | . . 1 . 2 . . Allies Corrupted . | . . . . . . . Allies Melted . | . . . . . . . Intel | -11 -10 -10 -10 -9 -8 -7 ------- Run | Scr Mat Min Exi Min Mat Fac Robot Analysis Total 2 | . 2 . . . . . Derelict Logs Recovered 2 | . . 1 . 1 . . Drone Launches 1 | . . . . . 1 . Drone Recoveries . | . . . . . . . Exploration | -11 -10 -10 -10 -9 -8 -7 ------------- Run | Scr Mat Min Exi Min Mat Fac Turns Passed 3596 | . 457 847 423 782 803 284 Spaces Moved 1874 | 1 246 419 222 375 434 177 Core . | . . . . . . . Treads . | . . . . . . . Legs 1874 | 1 246 419 222 375 434 177 Wheels . | . . . . . . . Hover . | . . . . . . . Flight . | . . . . . . . Fastest Speed 120 | 120 120 190 190 190 120 123 Average Speed 166 | 120 156 190 190 190 133 123 Slowest Speed 260 | 120 190 260 190 190 190 123 Overloaded Moves . | . . . . . . . Propulsion Burnouts . | . . . . . . . Robots Hopped . | . . . . . . . Cave-ins Triggered . | . . . . . . . Exploration Rate (%) 41 | 2 56 72 62 58 36 5 Regions Visited 6 Branch Regions 3 Pre-discovered Areas 2 | . . . . 2 . . Known Exits Taken 1 | . 1 . . . . . Unknown Exits Taken 5 | 1 . 1 1 1 1 . Scrap Searched 4 | . . 3 . 1 . . Spaces Dug 54 | . . . . 21 30 3 Terrain Destroyed 150 | . . 39 . 67 41 3 Melee 11 | . . . . . 8 3 Projectile . | . . . . . . . AOE 139 | . . 39 . 67 33 . Terrain Rammed . | . . . . . . . Walls Destroyed . | . . . . . . . Machines Disabled . | . . . . . . . Actions | -11 -10 -10 -10 -9 -8 -7 --------- Run | Scr Mat Min Exi Min Mat Fac Total 2228 | . 289 453 225 429 616 216 Wait 191 | . 11 12 . 38 123 7 Move 1868 | . 245 418 221 374 433 177 Hop . | . . . . . . . Pick Up 22 | . 6 3 2 2 6 3 Fast Attach 7 | . 2 . . . 4 1 Attach 12 | . . 1 . . 8 3 Detach 4 | . . . . . 4 . Swap 17 | . 5 2 . 2 5 3 Drop 21 | . 5 4 2 2 6 2 Fire 59 | . 15 13 . 10 9 12 Melee 26 | . . . . . 18 8 Ram . | . . . . . . . Kick 1 | . . . . 1 . . Crush . | . . . . . . . Escape Stasis . | . . . . . . . Rewire . | . . . . . . . Trap . | . . . . . . . Miscellaneous . | . . . . . . . Route ------- -11/Scrapyard -10/Materials (discovered 2 exits: [*Mat] / *Min) -10/Mines (discovered 2 exits: [*Mat] / *Exi) -10/Exiles -9/Mines -8/Materials -7/Factory History --------- Turn | Location | Event 1 | -11/Scrapyard | Discovered new exit (range 0) 1 | -11/Scrapyard | Entered Materials 306 | -10/Materials | Build established: Mutant 317 | -10/Materials | Discovered new exit (range 3) 363 | -10/Materials | Identified exit to Mines 458 | -10/Materials | Entered Mines 490 | -10/Mines | Assembled infested the area 495 | -10/Mines | Assisted by a Guerilla fighting off Assembled 556 | -10/Mines | Found the Drone Emporium 569 | -10/Mines | Found Prototype Device 797 | -10/Mines | Received a Rocket Launcher from a helpful Derelict 917 | -10/Mines | Learned Materials emergency access door positions 947 | -10/Mines | Assisted by bots powering up and referring to "LRC-V3" 1078 | -10/Mines | Discovered new exit (range 11) 1283 | -10/Mines | Deemed a non-threat by the Exiles lab entrance 1285 | -10/Mines | Discovered new exit (range 5) 1305 | -10/Mines | Entered Exiles 1305 | -10/Exiles | Accompanied by 5 allies 1335 | -10/Exiles | Led the pair of lost Derelicts to a safe place 1353 | -10/Exiles | Met 8R-AWN 1383 | -10/Exiles | Met EX-HEX 1442 | -10/Exiles | Met EX-BIN 1463 | -10/Exiles | Aligned with FarCom system 1465 | -10/Exiles | Given EX-Vault access code 1509 | -10/Exiles | Opened EX-Vault 1523 | -10/Exiles | Found Potential Leg 1526 | -10/Exiles | Found Potential Leg 1569 | -10/Exiles | Warned to stay clear of 0b10 Research branches 1620 | -10/Exiles | Met EX-DEC 1707 | -10/Exiles | Discovered new exit (range 14) 1728 | -10/Exiles | Left Exiles lab with Potential Leg 1728 | -10/Exiles | Entered Mines 1728 | -9/Mines | Accompanied by 3 allies 1729 | -9/Mines | Learned location of Storage (-8) 2225 | -9/Mines | Learned location of Zion (-7) 2423 | -9/Mines | Discovered new exit (range 14) 2469 | -9/Mines | Found a damaged Exp. Sensor Array with a note attached 2473 | -9/Mines | Found Prototype Device 2510 | -9/Mines | Entered Materials 2510 | -8/Materials | Evolved 4 slots: Propulsion x1, Utility x3 2510 | -8/Materials | Identified Exp. Sensor Array 2512 | -8/Materials | Identified Decoy Drone Bay 3246 | -8/Materials | Discovered new exit (range 3) 3313 | -8/Materials | Entered Factory 3313 | -7/Factory | Evolved 2 slots: Weapon x2 3597 | -7/Factory | Self-destructed Last Messages --------------- 03461_ Acquired 51 matter. 03467_ Dropped Aluminum Leg. 03471_ Acquired 42 matter. 03480_ Acquired 82 matter. 03481_ Extracted 39 matter. 03482_ Acquired Med. Matter Pod. 03487_ Dropped Hvy. Mace. 03487_ Acquired Axe. 03534_ K-01 Serf collects debris. 03541_ Sneak attack on K-01 Serf. 03541_ Destroyed Lgt. Ion Engine. 03541_ K-01 Serf destroyed. 03544_ Acquired 12 matter. 03545_ Extracted 47 matter. 03563_ U-05 Engineer builds a Wall. 03585_ Triggered Ambush Trap. 03585_ L-41 Fighter emerges from a hatch in the floor. 03585_ S-27 Virus emerges from a hatch in the floor. 03585_ Enh. Autogun severed. 03587_ U-05 Engineer lays Concrete. Map ----- +----------------------------------------------------+ | ?????????????????????????????????????????????????? | | ?????????????????????????????????????????????????? | | ?????????????????????????????????????????????????? | | ?????????????????????????????????????????????????? | | ?????????????????????????????????????????????????? | | ?????????????????????????????????????????????????? | | ?????????????????????????????????????????????????? | | ???????????????????##############????????????????? | | ???????????????????# #????????????????? | | ???????????????????# #????????????????? | | ???????????????????# #????????????????? | | ???????????????????# #????????????????? | | ???????????????????# #????????????????? | | ???????????????????# #????????????????? | | ???????????????????# #????????????????? | | ???????????????????# = #???? ???????????? | | ???????????????????# ! # ????????? | | ???????????????????# / ????????? | | ????????############ # ???????? | | ????????# "# #? ##?????????? | | ????????# ############### #??????????? | | ????????# # #??????????? | | ????????# # u #??????????? | | ????????# # s #??????????? | | ????????# * + u ulw #??????????? | | ????????# # @s #??????????? | | ????????# # ##########+###???????????? | | ????############### #????????????????????????? | | ????# #????????????????????????? | | ????# #????????????????????????? | | ????# #????????????????????????? | | ????# #????????????????????????? | | ????# #????????????????????????? | | ????# ###############????????????????????????? | | ????# # #????????????????????????????? | | ????# # [ #????????????????????????????? | | ????# #= ! #????????????????????????????? | | ????# *# /! #????????????????????????????? | | ????# += ] #????????????????????????????? | | ????# #*= #????????????????????????????? | | ????# #" #????????????????????????????? | | ##### # ^ #????????????????????????????? | | # ###########????????????????????????????? | | =# #??????????????????????????????????????? | | # #??????????????????????????????????????? | | # #??????????????????????????????????????? | | # #??????????????????????????????????????? | | # #??????????????????????????????????????? | | # #??????????????????????????????????????? | | # #??????????????????????????????????????? | +----------------------------------------------------+ Best States ------------- Heat Dissipation 35 Coolant Potential 65 Energy Generation 18 Energy Capacity 310 Matter Stores 300 Matter Capacity 300 Sight Range 18 Robot Scan Range 20 Terrain Scan Density 10 Armor Coverage 150 Evasion (%) 55 Item Schematics ----------------- Exp. Sensor Array | -8/Materials | Scanalyzed Fission Core | -8/Materials | Scanalyzed Enh. Autogun | -8/Materials | Scanalyzed Robot Schematics ------------------ None Fabricated ------------ Nothing Alien Tech Used ----------------- None Achievements -------------- None Challenges ------------ None Game ------ Seed ThiefTargetingRailgun Manual? 0 Play Time 00:27:31 Cumulative 249.4 hours Start 2022.08.23 @ 22:31:16 End 2022.08.23 @ 22:58:27 Sessions 1 Manual Loads 0 Difficulty Rogue Special Mode None Game No. 570 Rogue 570 Adventurer 0 Explorer 0 Win Type - Total 5 Types 4/0/0/1/0/0/0/0/0 Lore% 58 Gallery% 62 Achievement% 56 Wizard Run 0 Options --------- ASCII 0 Keyboard 0 Movement Numpad Keybinds 0 Fullscreen 1 Font 16/SmallcapsGlow Map View 75x55 Tactical HUD 1 Map Filters NONE Filters NONE Steam 1 RUN: 6c386362-7ea4-440d-b768-cb5bff113d0b